Workbook

Sheet Documentation
A1: New Perspectives Excel 2013
A2: Tutorial 7: SAM Project 1a
A3: Spring Software
A4: CUSTOMIZING WORKBOOKS USING MACROS AND DATA VALIDATION
A6: Author:
A8: Note: Do not edit this sheet. If your name does not appear in cell B6, please download a new copy of the file from the SAM website.

Sheet Consolidated
B2: Spring Software-Consolidated Sales
B3: Product Revenues
B4: Revenues | C4: 2014 | D4: 2015 | E4: 2016 | F4: Total | G4: Trend
B5: Spring Groupware
B6: Subscriptions | C6: 5372865.3 | D6: 5390853 | E6: =5803769.4 -> 5803769.4 | F6: =SUM(C6:E6) -> 16567487.7
B7: Site Licenses | C7: 2442211.5 | D7: 3096873 | E7: 3957115.5 | F7: =SUM(C7:E7) -> 9496200
B8: Other | C8: 1953769.2 | D8: 2982174 | E8: 3429500.1 | F8: 8365443.3
B9: Groupware Total | C9: =SUM(C6:C8) -> 9768846 | D9: =SUM(D6:D8) -> 11469900 | E9: =SUM(E6:E8) -> 13190385 | F9: =SUM(F6:F8) -> 34429131
B10: Spring Mail
B11: Subscriptions | C11: 875957.8542 | D11: 1967212.8 | E11: =2638607.4 -> 2638607.4 | F11: =SUM(C11:E11) -> 5481778.054
B12: Site Licenses | C12: 1112703.22 | D12: 2866510.08 | E12: 4397679 | F12: =SUM(C12:E12) -> 8376892.3
B13: Other | C13: 378792.5856 | D13: 786885.12 | E13: 959493.6 | F13: 2125171.306
B14: Spring Mail Total | C14: =SUM(C11:C13) -> 2367453.66 | D14: =SUM(D11:D13) -> 5620608 | E14: 7995780 | F14: 15983841.66
B15: Spring Math Genius
B16: Subscriptions | C16: 249522.6 | D16: 316785.48 | E16: 150450
B17: Site Licenses | C17: 939379.2 | D17: 1017048.12 | E17: 51000
B18: Other | C18: 278878.2 | D18: 333458.4 | E18: 53550
B19: Math Genius Total | C19: 1467780 | D19: 1667292 | E19: 255000 | F19: =SUM(F16:F18) -> 0
B20: Consulting Services | C20: 13734300 | D20: 15810000 | E20: 19125000 | F20: 48669300
B22: Total | C22: =C9+C14+C19+C20 -> 27338379.66 | D22: =D9+D14+D19+D20 -> 34567800 | E22: 40566165 | F22: 99082272.66

Sheet Manchester
B2: Spring Software-Manchester Sales
B3: Product Revenues
B4: Revenues | C4: 2014 | D4: 2015 | E4: 2016 | F4: Total | G4: Trend
B5: Spring Groupware
B6: Subscriptions | C6: 268643.265 | D6: 269542.65 | E6: 290188.47 | F6: =SUM(C6:E6) -> 828374.385
B7: Site Licenses | C7: 122110.575 | D7: 154843.65 | E7: 197855.775 | F7: =SUM(C7:E7) -> 474810
B8: Other | C8: 97688.46 | D8: 149108.7 | E8: 171475.005 | F8: 418272.165
B9: Groupware Total | C9: =SUM(C6:C8) -> 488442.3 | D9: =SUM(D6:D8) -> 573495 | E9: =SUM(E6:E8) -> 659519.25 | F9: =SUM(F6:F8) -> 1721456.55
B10: Spring Mail
B11: Subscriptions | C11: 87595.78542 | D11: 196721.28 | E11: 263860.74 | F11: =SUM(C11:E11) -> 548177.8054
B12: Site Licenses | C12: 111270.322 | D12: 286651.008 | E12: 439767.9 | F12: =SUM(C12:E12) -> 837689.23
B13: Other | C13: 37879.25856 | D13: 78688.512 | E13: 95949.36 | F13: 212517.1306
B14: Spring Mail Total | C14: =SUM(C11:C13) -> 236745.366 | D14: =SUM(D11:D13) -> 562060.8 | E14: 799578 | F14: 1598384.166
B15: Spring Math Genius
B16: Subscriptions | C16: 87332.91 | D16: 110874.918 | E16: 52657.5 | F16: =SUM(C16:E16) -> 250865.328
B17: Site Licenses | C17: 328782.72 | D17: 355966.842 | E17: 17850 | F17: =SUM(C17:E17) -> 702599.562
B18: Other | C18: 97607.37 | D18: 116710.44 | E18: 18742.5 | F18: 233060.31
B19: Math Genius Total | C19: 1467780 | D19: 1667292 | E19: 255000 | F19: =SUM(F16:F18) -> 1186525.2
B20: Consulting Services | C20: 6180435 | D20: 7114500 | E20: 8606250 | F20: 48669300
B22: Total | C22: =C9+C14+C19+C20 -> 8373402.666 | D22: =D9+D14+D19+D20 -> 9917347.8 | E22: 10320347.25 | F22: 53175665.92

Sheet Sales Data Entry Form
B3: Spring Software
B4: Sales Data Entry Form
B5: Product Name
B6: Customer Name
B7: Contract Type
B8: Date of Sale
B9: Total Sale
B10: Spring Sales Contact | C10: Rohan Mateev
